bitfinex/quotes_ETHUSD_20251119
["timestamp","ask_amount","ask_price","bid_price","bid_amount"]
[1763521122332,9.12314831,3127.4,3127.3,0.001]
[1763521122720,10.27599948,3127.4,3127.3,0.001]
[1763521122918,0.4553,3126.7,3125.1,0.4895]
[1763521123122,0.4553,3126.7,3124.6,0.001]
[1763521123123,0.4553,3126.1,3125.5,0.1938]
[1763521123309,5.03308786,3126.1,3125.5,0.1938]
[1763521123509,3.50378716,3126.1,3125.6,0.4905]
[1763521123718,0.12836249,3126.7,3126.0,0.4905]
[1763521123920,0.50242901,3127.4,3126.1,1.27080584]
[1763521124260,2.81414488,3127.4,3126.2,0.63809576]
[1763521124413,3.3242969,3127.3,3126.0,0.001]
[1763521124608,0.405504,3127.2,3126.0,0.001]
[1763521124828,5.02515577,3127.2,3126.0,0.001]
[1763521125029,6.1878477,3127.2,3126.0,0.001]
[1763521125215,0.405504,3127.0,3126.0,0.001]
[1763521127145,0.405504,3127.2,3126.0,0.001]
[1763521127509,0.405504,3127.1,3126.0,0.001]
[1763521127706,1.054004,3126.1,3126.0,0.001]
[1763521128026,3.25019881,3126.1,3126.0,0.001]
[1763521128338,5.6954315,3126.1,3126.0,0.001]
[1763521128916,5.53814683,3126.1,3126.0,0.001]
[1763521130143,5.18990082,3126.1,3126.0,0.001]
[1763521130440,4.31912889,3126.1,3126.0,0.001]
[1763521130644,0.405504,3126.0,3125.7,0.001]
[1763521130845,1.76779664,3125.8,3125.7,0.001]
[1763521131017,1.31249664,3125.7,3125.6,0.001]
[1763521131234,1.88074562,3125.7,3125.6,0.001]
[1763521131433,2.78773826,3125.7,3125.6,0.001]
[1763521131650,3.75986542,3125.7,3125.6,0.001]
[1763521131959,9.46215742,3125.7,3125.6,0.001]
[1763521132156,6.14743542,3125.7,3125.6,0.001]
[1763521132521,5.83652642,3125.7,3125.6,0.001]
[1763521132754,6.77026642,3125.7,3125.6,0.001]
[1763521133068,3.75986542,3125.7,3125.6,0.001]
[1763521135657,3.88827612,3125.7,3125.6,0.001]
[1763521135862,9.24675639,3125.7,3125.6,0.001]
[1763521136158,8.11517639,3125.7,3125.6,0.001]
[1763521136363,7.32817639,3125.7,3125.6,0.001]
[1763521136959,13.35013239,3125.7,3125.6,0.001]
[1763521137129,7.53505877,3125.4,3125.3,0.001]
[1763521137329,9.98160154,3125.4,3125.3,0.001]
[1763521137529,10.45150154,3125.4,3125.3,0.001]
[1763521139372,1.86253826,3125.3,3124.6,0.001]
[1763521139544,0.860804,3124.7,3124.6,0.001]
[1763521139873,1.41084562,3124.7,3124.6,0.001]
[1763521140243,2.08814018,3124.7,3124.6,0.001]
[1763521140442,2.99513282,3124.7,3124.6,0.001]
[1763521141074,2.99513282,3124.7,3123.7,0.001]
[1763521141239,6.62806613,3124.1,3123.7,0.001]
[1763521141443,10.39948944,3124.1,3123.7,0.001]
[1763521142270,9.7136574,3124.1,3123.7,0.001]
[1763521142496,1.31249664,3124.0,3123.7,0.001]
[1763521142692,1.054004,3123.8,3123.7,0.001]
[1763521142981,0.405504,3123.7,3122.5,0.003]
[1763521143172,0.405504,3123.5,3122.5,0.003]
[1763521143470,0.95554562,3123.5,3122.5,0.003]
[1763521143769,0.55004162,3123.4,3122.5,0.003]
[1763521145366,1.01994162,3123.4,3122.5,0.003]
[1763521146802,0.90699264,3122.8,3122.5,0.003]
[1763521147309,0.90699264,3122.8,3122.7,0.003]
[1763521148003,1.31249664,3122.8,3122.7,0.003]
[1763521150707,1.31249664,3122.8,3122.4,0.003]
[1763521150894,1.31249664,3122.8,3122.7,0.003]
[1763521151203,1.90693302,3122.8,3122.7,0.003]
[1763521152769,0.99994038,3122.8,3122.7,0.003]
[1763521152974,0.405504,3122.8,3122.7,0.003]
[1763521154223,0.55004162,3123.2,3122.7,0.006]
[1763521154424,0.55004162,3123.2,3123.1,0.003]
[1763521154625,0.55004162,3123.5,3123.1,0.006]
[1763521154922,0.55004162,3123.5,3121.3,0.003]
[1763521154923,1.31249664,3123.0,3121.3,0.003]
[1763521155226,0.405504,3122.3,3121.3,0.003]
[1763521155386,0.55004162,3122.2,3121.3,0.003]
[1763521155591,0.405504,3122.1,3121.3,0.003]
[1763521155791,0.55004162,3122.0,3121.3,0.003]
[1763521155987,0.405504,3121.9,3120.6,0.003]
[1763521156214,0.405504,3121.7,3119.3,0.003]
[1763521156415,0.18625383,3121.6,3119.3,0.003]
[1763521156727,0.55004162,3121.7,3119.3,0.408504]
[1763521157239,0.55004162,3121.7,3119.4,0.0033]
[1763521157724,0.55004162,3121.7,3119.5,0.03205641]
[1763521157725,0.405504,3121.6,3119.5,0.03205641]
[1763521157916,0.70227166,3121.6,3119.4,0.03535744]
[1763521158086,0.70227166,3121.6,3119.5,0.0033]
[1763521158693,1.20560686,3121.6,3119.5,0.0033]
[1763521158993,0.405504,3121.4,3119.5,0.03535641]
[1763521159493,0.17038069,3121.5,3121.3,0.0033]
[1763521159728,0.5033352,3121.6,3121.4,0.0033]
[1763521159889,0.5033352,3121.6,3121.5,0.0033]
[1763521162247,0.5033352,3121.6,3121.5,0.0066]
[1763521163145,0.5033352,3121.6,3121.5,0.0033]
[1763521163446,0.5033352,3121.6,3118.9,0.03206258]
[1763521163636,0.5033352,3121.6,3120.9,0.0033]
[1763521164448,0.405504,3121.5,3119.3,0.03205847]
[1763521164608,0.405504,3121.5,3118.8,0.405504]
[1763521164609,1.92819008,3121.5,3119.8,0.0033]
[1763521164813,0.24315253,3121.4,3119.8,0.0033]
[1763521165414,0.55004162,3121.5,3119.8,0.0033]
[1763521165617,0.55004162,3121.5,3121.4,0.0033]
[1763521165811,0.5033352,3121.6,3121.4,0.0033]
[1763521166123,0.5033352,3121.6,3121.5,0.0033]
[1763521167148,0.5033352,3121.6,3121.1,0.001]
[1763521167445,0.5033352,3121.6,3121.5,0.0033]
[1763521167946,0.5033352,3121.6,3121.1,0.0043]
[1763521168655,0.5033352,3121.6,3121.5,0.0033]
[1763521168867,0.68523256,3122.0,3121.5,0.0033]
[1763521169066,0.17122742,3121.9,3121.5,0.0033]
[1763521169257,0.68523256,3122.3,3121.5,0.0033]
[1763521169568,0.405504,3122.3,3121.5,0.0033]
[1763521169865,0.405504,3122.4,3121.5,0.0033]
[1763521170164,0.68523256,3122.5,3121.5,0.0033]
[1763521170363,1.23396414,3122.4,3121.3,0.0033]
[1763521170565,1.23396414,3122.4,3121.1,0.001]
[1763521170566,0.95554562,3122.3,3121.1,0.001]
[1763521170753,1.43254562,3122.3,3121.1,0.0043]
[1763521170935,0.405504,3122.1,3121.1,0.0043]
[1763521171128,0.95554562,3122.1,3121.2,0.0033]
[1763521171332,0.16407782,3122.0,3121.2,0.0033]
[1763521172558,0.68523256,3122.2,3121.2,0.0033]
[1763521172749,0.98019389,3122.3,3121.2,0.0033]
[1763521172946,0.98019389,3122.3,3121.1,0.001]
[1763521173175,1.43254562,3122.2,3121.1,0.0043]
[1763521173468,0.405504,3122.0,3121.1,0.0043]
[1763521173635,0.55004162,3121.9,3121.1,0.0043]
[1763521174836,0.90699264,3121.8,3121.1,0.0043]
[1763521175036,0.90699264,3121.8,3121.1,0.001]
[1763521175037,0.405504,3121.7,3121.1,0.001]
[1763521175436,0.405504,3121.5,3121.1,0.001]
[1763521175864,0.23395383,3121.6,3121.1,0.001]
[1763521177270,1.02704162,3121.7,3121.1,0.001]
[1763521178742,0.55004162,3121.7,3121.1,0.001]
[1763521179470,0.55004162,3121.7,3121.1,0.0043]
[1763521179788,0.29883109,3121.6,3121.1,0.0043]
[1763521180119,0.29880885,3121.5,3121.1,0.0043]
[1763521180387,0.29880885,3121.4,3121.1,0.0043]
[1763521180569,0.29891042,3121.8,3121.1,0.0043]
[1763521180741,0.29891042,3121.7,3121.3,0.0033]
[1763521181071,0.29891042,3121.6,3121.3,0.0033]
[1763521181277,0.29891042,3121.5,3121.3,0.0033]
[1763521181472,0.29891042,3121.4,3121.1,0.0043]
[1763521181639,0.29891042,3121.8,3121.1,0.0043]
[1763521181845,0.29891042,3121.7,3121.3,0.0033]
[1763521182045,0.29891042,3121.6,3121.3,0.0033]
[1763521182253,0.29891042,3121.5,3121.3,0.0033]
[1763521182471,0.29891042,3121.4,3121.3,0.0033]
[1763521183579,0.29891042,3121.4,3121.1,0.001]
[1763521183744,0.29891042,3121.3,3121.1,0.001]
[1763521183941,0.29891042,3121.2,3121.1,0.001]
[1763521184237,0.29891042,3121.7,3121.1,0.001]
[1763521184441,0.29891042,3121.6,3121.1,0.0043]
[1763521184642,0.29891042,3121.5,3121.1,0.0043]
[1763521184841,0.29891042,3121.4,3121.1,0.0043]
[1763521185042,0.29891042,3121.3,3121.1,0.0043]
[1763521185270,0.71484362,3121.7,3121.1,0.0043]
[1763521185271,0.29891042,3121.2,3121.1,0.0043]
[1763521185477,0.29891042,3121.6,3121.1,0.001]
[1763521185673,0.29891042,3121.5,3121.1,0.001]
[1763521185841,0.29891042,3121.4,3121.1,0.001]
[1763521186042,0.29891042,3121.3,3121.1,0.001]
[1763521186239,0.29891042,3121.2,3121.1,0.001]
[1763521186457,0.29891042,3121.6,3121.1,0.001]
[1763521186678,0.29891042,3121.5,3121.1,0.001]
[1763521186872,0.50325182,3121.9,3121.1,0.0043]
[1763521186873,0.29891042,3121.4,3121.1,0.0043]
[1763521187093,0.29891042,3121.8,3121.1,0.0043]
[1763521187261,0.80216224,3121.9,3121.8,0.0033]
[1763521187574,0.50325182,3121.9,3121.8,0.0033]
[1763521187775,0.50325182,3121.9,3121.8,0.0066]
[1763521188547,0.29944212,3122.7,3121.8,0.0066]
[1763521188742,0.29944212,3122.7,3121.9,0.0033]
[1763521188982,0.29944212,3123.0,3122.6,0.0033]
[1763521189279,0.29944212,3123.2,3122.6,0.0033]
[1763521189452,0.29944212,3123.1,3122.6,0.0033]
[1763521189776,0.29944212,3123.0,3122.0,0.0033]
[1763521190283,0.77154212,3123.1,3122.0,0.0033]
[1763521191059,0.19727194,3123.2,3121.6,0.0033]
[1763521191060,0.77154212,3123.0,3121.6,0.0033]
[1763521191259,6.81073956,3122.9,3121.6,0.0033]
[1763521191464,1.98584788,3122.8,3121.6,0.0033]
[1763521191685,0.29944212,3122.7,3121.6,0.0033]
[1763521191981,0.77154212,3122.7,3121.6,0.0033]
[1763521192893,0.29944212,3122.6,3121.6,0.0033]
[1763521193251,0.4721,3122.6,3121.6,0.0033]
[1763521195269,0.4721,3122.6,3121.1,0.001]
[1763521195487,0.70494612,3122.5,3121.1,0.001]
[1763521195792,0.405504,3122.3,3121.1,0.0043]
[1763521195972,0.70494612,3122.3,3121.1,0.0043]
[1763521196166,0.4721,3122.2,3121.1,0.0043]
[1763521196371,0.77154212,3122.2,3121.1,0.0043]
[1763521197189,0.29944212,3122.2,3121.2,0.0033]
[1763521197391,0.29944212,3122.3,3121.2,0.0033]
[1763521197593,0.4721,3122.4,3121.2,0.0033]
[1763521199580,0.29944212,3122.5,3121.2,0.0033]
[1763521200390,0.57669802,3122.5,3121.2,0.0033]
[1763521200692,0.4721,3122.4,3121.1,0.001]
[1763521200893,0.77154212,3122.4,3121.1,0.001]
[1763521201094,0.77154212,3122.4,3121.1,0.0043]
[1763521201264,0.877604,3122.3,3121.1,0.0043]
[1763521201590,0.46827589,3122.2,3121.1,0.0043]
[1763521201782,0.94037589,3122.2,3121.1,0.0043]
[1763521202090,0.29944212,3122.1,3121.1,0.0043]
[1763521202392,0.4867,3121.2,3121.1,0.001]
[1763521203505,0.4721,3121.5,3121.1,0.001]
[1763521205389,0.4867,3121.2,3121.1,0.001]
[1763521206072,0.9588,3121.2,3121.1,0.001]
[1763521207095,1.25652905,3121.2,3121.1,0.001]
[1763521207310,0.9588,3121.2,3121.1,0.001]
[1763521207488,1.25658812,3121.2,3121.1,0.001]
[1763521207688,1.66209212,3121.2,3121.1,0.001]
[1763521208012,1.82830133,3121.2,3121.1,0.001]
[1763521208211,1.53051321,3121.2,3121.1,0.001]
[1763521208415,1.82838421,3121.2,3121.1,0.001]
[1763521212829,2.33967583,3121.2,3121.1,0.001]
[1763521212998,3.93346854,3121.2,3121.1,0.001]
[1763521213198,4.06204931,3121.2,3121.1,0.001]
[1763521213442,4.06204931,3121.2,3120.8,0.001]
[1763521213443,1.77039664,3121.1,3120.8,0.001]
[1763521213608,0.405504,3120.8,3120.7,0.001]
[1763521213794,9.1383527,3120.8,3120.7,0.001]
[1763521214000,9.82486975,3120.8,3120.7,0.001]
[1763521214196,9.95346251,3120.8,3120.7,0.001]
[1763521214441,10.28144171,3120.8,3120.7,0.001]
[1763521215338,4.17541738,3120.8,3120.7,0.001]
[1763521215637,3.16092113,3120.8,3120.7,0.001]
[1763521216822,3.66434754,3120.8,3120.7,0.001]
[1763521217522,0.405504,3120.6,3117.7,2.41038221]
[1763521217724,1.16104411,3120.6,3118.9,0.0043]
[1763521217930,1.56516457,3120.5,3118.9,0.0043]
[1763521218251,0.405504,3120.3,3118.9,0.0043]
[1763521218744,0.405504,3120.1,3118.9,0.0043]
[1763521218932,0.405504,3120.1,3118.9,0.0053]
[1763521219335,0.858504,3120.1,3118.9,0.0053]
[1763521220565,0.30323284,3120.5,3120.0,0.0043]
[1763521220862,0.30323284,3120.5,3118.9,0.0053]
[1763521220863,0.4579,3120.1,3119.1,0.0043]
[1763521221361,0.9109,3120.1,3119.1,0.0043]
[1763521222164,0.405504,3119.9,3118.9,0.0053]
[1763521222619,0.593104,3119.9,3118.9,0.0053]
[1763521223837,1.050404,3119.9,3118.9,0.0053]
[1763521224666,0.4573,3119.8,3118.9,0.0053]
[1763521224829,0.96859162,3119.8,3118.9,0.001]
[1763521225248,0.4573,3119.7,3118.9,0.001]
[1763521225447,0.4573,3119.7,3118.9,1.001]
[1763521226779,0.405504,3119.6,3118.9,1.001]
[1763521227082,0.4573,3119.5,3118.9,1.001]
[1763521227283,0.96087401,3119.5,3118.9,1.001]
[1763521227472,0.4573,3119.5,3118.9,1.001]
[1763521227676,0.4573,3119.4,3118.9,1.001]
[1763521228184,0.405504,3119.6,3118.9,1.001]
[1763521230379,0.50356327,3119.5,3118.9,1.001]
[1763521230582,0.69132916,3119.5,3118.9,1.001]
[1763521231027,0.50356327,3119.5,3119.4,0.0043]
[1763521234018,0.50356327,3119.5,3118.9,1.001]
[1763521234221,0.50356327,3119.5,3118.9,1.0053]
[1763521234623,0.50356327,3119.5,3118.9,1.001]
[1763521234800,0.96086327,3119.5,3118.9,1.001]
[1763521235425,0.2983258,3119.4,3118.9,1.001]
[1763521235717,0.7556258,3119.4,3118.9,1.001]
[1763521236704,0.2983258,3119.4,3118.9,1.001]
[1763521236902,0.2983258,3119.4,3119.0,0.001]
[1763521237338,0.50356327,3119.5,3119.0,0.001]
[1763521237651,0.98016327,3119.5,3119.0,0.001]
[1763521237813,0.2983258,3119.4,3119.0,0.001]
[1763521239461,0.890004,3119.1,3119.0,0.001]
[1763521239608,0.7828258,3119.1,3119.0,0.001]
[1763521239935,0.2983258,3119.1,3119.0,0.001]
[1763521240155,0.2983258,3119.2,3119.0,0.0053]
[1763521240439,1.2059956,3119.4,3119.0,0.001]
[1763521240625,0.29900296,3119.3,3119.0,0.001]
[1763521241024,0.29900296,3119.5,3119.0,0.001]
[1763521241226,0.29900296,3119.4,3119.0,0.001]
[1763521241425,0.29900296,3119.3,3119.0,0.001]
[1763521241605,0.29900296,3119.6,3119.0,0.001]
[1763521241935,0.29900296,3119.5,3119.2,0.0043]
[1763521242140,0.29900296,3119.4,3119.2,0.0043]
[1763521242340,0.29900296,3119.3,3119.2,0.0043]
[1763521242504,0.29900296,3119.3,3119.0,0.001]
[1763521242707,1.5965347,3119.7,3119.2,0.0043]
[1763521242904,0.97068215,3119.6,3119.2,0.0043]
[1763521243111,0.29924629,3119.5,3119.2,0.0043]
[1763521243309,0.29924629,3119.4,3119.2,0.0043]
[1763521243507,0.29924629,3119.3,3119.0,0.0053]
[1763521243711,0.29924629,3119.2,3119.0,0.0053]
[1763521243910,0.29924629,3119.1,3119.0,0.0053]
[1763521244139,0.29924629,3119.8,3119.0,0.0053]
[1763521244343,0.29924629,3119.7,3119.0,0.0096]
[1763521244521,0.29924629,3119.6,3119.0,0.0096]
[1763521244719,0.29924629,3119.5,3119.0,0.0096]
[1763521244920,0.29924629,3119.4,3119.0,0.0096]
[1763521245128,0.29924629,3119.3,3119.0,0.0096]
[1763521245335,0.29924629,3119.2,3119.0,0.0053]
[1763521245536,0.29924629,3119.1,3119.0,0.001]
[1763521245942,0.29924629,3119.1,3119.0,0.0053]
[1763521247457,0.78374629,3119.1,3119.0,0.001]
[1763521247785,1.26034629,3119.1,3119.0,0.001]
[1763521249751,1.66585029,3119.1,3119.0,0.001]
[1763521250045,1.83243532,3119.1,3119.0,0.001]
[1763521251058,3.88176672,3119.1,3119.0,0.001]
[1763521252920,3.4294751,3119.1,3119.0,0.001]
[1763521257364,3.93314604,3119.1,3119.0,0.001]
[1763521258062,3.9318636,3119.1,3119.0,0.001]
[1763521258243,3.9286575,3119.1,3119.0,0.001]
[1763521258431,3.23861036,3119.1,3119.0,0.001]
[1763521258767,3.92645044,3119.1,3119.0,0.001]
[1763521259264,3.23861036,3119.1,3119.0,0.001]
[1763521259561,2.18992133,3119.1,3119.0,0.001]
[1763521259869,1.70542133,3119.1,3119.0,0.0053]
[1763521260167,0.90699264,3119.1,3119.0,0.0053]
[1763521260556,0.68776872,3119.6,3119.0,0.0053]
[1763521260769,6.46,3119.7,3119.0,0.0053]
[1763521260946,0.90699264,3119.6,3119.0,0.0053]
[1763521262171,0.405504,3119.8,3119.0,0.0053]
[1763521262771,0.882104,3119.8,3119.0,0.0053]
[1763521263540,0.50357377,3119.7,3119.0,0.0053]
[1763521265260,0.50357377,3119.7,3119.0,0.001]
[1763521265464,0.50357377,3119.7,3119.6,0.0043]
[1763521266082,0.50357377,3119.7,3119.1,0.0043]
[1763521266379,0.50357377,3119.7,3119.6,0.0043]
[1763521266890,0.002,3120.5,3119.6,4.6446459]
[1763521267046,0.002,3120.5,3119.7,1.37145723]
[1763521267247,0.002,3120.5,3119.7,0.46446459]
[1763521267506,0.002,3120.5,3119.6,0.12854069]
[1763521267658,0.002,3120.5,3120.1,4.6403459]
[1763521269089,0.002,3120.5,3119.8,4.6403459]
[1763521271004,0.002,3120.5,3119.7,0.405504]
[1763521274275,0.50333771,3120.4,3119.7,0.405504]
[1763521276717,0.50333771,3120.4,3119.9,0.405504]
[1763521276876,0.002,3120.9,3120.1,0.405504]
[1763521277513,0.002,3120.9,3120.5,0.405504]
[1763521277809,0.002,3121.2,3120.5,0.405504]
[1763521278894,0.002,3121.2,3120.3,0.405504]
[1763521279495,0.002,3121.2,3120.5,0.405504]
[1763521279897,0.002,3121.2,3120.7,0.405504]
[1763521280607,0.002,3121.2,3120.6,0.405504]
[1763521281575,0.002,3121.2,3120.5,0.03204614]
[1763521281781,0.002,3121.2,3120.6,0.405504]
[1763521282006,0.002,3121.2,3120.4,0.93903981]
[1763521282007,0.002,3121.2,3120.5,0.405504]
[1763521282312,0.002,3121.2,3120.8,0.405504]
[1763521282516,0.002,3121.2,3120.7,0.467]
[1763521283627,0.002,3121.2,3120.8,0.43754706]
[1763521283777,0.002,3121.2,3120.9,0.405504]
[1763521283980,0.002,3121.2,3120.7,0.467]
[1763521286483,0.002,3121.2,3120.8,0.03204306]
[1763521287121,0.002,3121.2,3120.9,0.405504]
[1763521287292,0.002,3121.2,3120.9,0.872504]
[1763521287683,0.002,3121.2,3120.0,0.43755528]
[1763521287917,0.002,3121.2,3121.0,0.4676]
[1763521294224,0.4926,3121.1,3121.0,0.4676]
[1763521294423,0.4926,3121.1,3120.5,0.001]
[1763521294624,0.002,3121.2,3120.5,0.001]
[1763521294828,0.002,3121.2,3120.6,0.4676]
[1763521295039,0.4676,3121.1,3120.6,0.4676]
[1763521295351,0.4926,3120.7,3120.6,0.4676]
[1763521295655,0.4926,3120.7,3120.5,0.001]
[1763521296136,0.4926,3120.7,3120.5,0.4686]
[1763521297306,0.1856,3120.8,3120.5,0.4686]
[1763521297307,0.4993,3120.6,3120.5,0.4686]
[1763521298403,0.9875,3120.6,3120.5,0.001]
[1763521298616,0.1981,3121.1,3120.5,0.001]
[1763521298849,0.6863,3121.1,3120.5,0.001]
[1763521299005,0.4882,3121.0,3120.5,0.001]
[1763521299625,0.1981,3121.1,3120.5,0.001]
[1763521300040,0.6863,3121.1,3120.5,0.001]
[1763521300433,0.002,3121.2,3120.5,0.001]
[1763521301554,0.4902,3121.2,3120.5,0.001]
[1763521302362,0.002,3121.2,3120.5,0.03304614]
[1763521302562,0.002,3121.2,3120.5,0.001]
[1763521303868,0.4902,3121.2,3120.5,0.001]
[1763521304969,0.6974,3120.6,3120.5,0.001]
[1763521305341,1.1856,3120.6,3120.5,0.001]
[1763521307138,0.6974,3120.6,3120.5,0.001]
[1763521307482,1.1856,3120.6,3120.5,0.001]
[1763521307774,0.1981,3120.9,3120.5,0.001]
[1763521308639,0.6863,3120.9,3120.5,0.001]
[1763521309481,0.002,3121.2,3120.5,0.001]
[1763521309941,0.002,3121.2,3120.5,0.12953945]
[1763521310142,0.002,3121.2,3120.6,0.03204511]
[1763521310372,0.002,3121.2,3120.5,0.12953945]
[1763521310549,0.4882,3121.1,3120.5,0.12953945]
[1763521310948,0.002,3120.9,3120.5,0.001]
[1763521312879,0.002,3120.9,3120.3,0.257504]
[1763521315377,0.6883,3120.9,3120.3,0.257504]
[1763521315592,0.002,3120.9,3120.3,0.257504]
[1763521316855,0.002,3120.9,3120.5,4.53060784]
[1763521317086,0.002,3120.9,3120.6,0.45306078]
[1763521320183,0.4993,3120.7,3120.5,0.1981]
[1763521320354,0.4993,3120.7,3120.2,0.001]
[1763521320355,0.4993,3120.6,3120.2,0.001]
[1763521320557,0.4993,3120.3,3120.2,0.001]
[1763521321483,0.9875,3120.3,3120.2,0.001]
[1763521323966,0.4993,3120.3,3120.2,0.001]
[1763521324286,0.9875,3120.3,3120.2,0.001]
[1763521325761,0.002,3120.9,3120.2,0.001]
[1763521325994,0.4882,3120.8,3120.2,0.001]
[1763521326198,0.002,3120.9,3120.3,0.0320482]
[1763521326370,0.002,3120.9,3120.4,0.4563656]
[1763521326715,0.4657,3120.9,3120.4,0.4563656]
[1763521327095,0.4657,3120.9,3120.2,0.001]
[1763521327595,0.4724,3120.3,3120.2,0.001]
[1763521328397,0.002,3120.9,3120.2,0.001]
[1763521328912,0.4657,3120.9,3120.2,0.001]
[1763521329882,0.4657,3120.9,3120.3,0.001]
[1763521330402,0.4724,3120.4,3120.3,0.001]
[1763521330815,0.002,3120.9,3120.3,0.001]
[1763521331109,0.4657,3120.9,3120.3,0.001]
[1763521331284,0.4724,3120.4,3120.3,0.001]
[1763521332109,0.9361,3120.4,3120.3,0.001]
[1763521332512,0.4724,3120.4,3120.3,0.001]
[1763521332681,0.9361,3120.4,3120.3,0.001]
[1763521333891,0.50329598,3120.7,3120.3,0.0330482]
[1763521334110,0.002,3120.9,3120.3,0.0330482]
[1763521334111,0.002,3120.9,3120.3,0.001]
[1763521334280,0.002,3120.9,3120.3,0.12951467]
[1763521334613,0.002,3120.9,3120.4,0.03204717]
[1763521334983,0.002,3120.9,3120.3,0.12951467]
[1763521335681,0.002,3120.9,3120.3,0.001]
[1763521336011,0.002,3120.9,3120.3,0.0330482]
[1763521336984,0.002,3120.9,3120.3,0.001]
[1763521337306,0.002,3120.9,3120.3,1.34554484]
[1763521337901,0.002,3120.9,3120.4,1.01993081]
[1763521338790,0.002,3120.9,3120.8,0.90699264]
[1763521338991,0.002,3120.9,3120.8,1.31249664]
[1763521339400,0.002,3120.9,3120.8,1.3445397]
[1763521339598,0.002,3120.9,3120.8,1.47303332]
[1763521339823,0.002,3120.9,3120.8,2.23086403]
[1763521341015,0.002,3120.9,3120.8,2.19882097]
[1763521342002,0.002,3120.9,3120.8,2.23086403]
[1763521343400,0.002,3120.9,3120.8,2.86408524]
[1763521343602,0.002,3121.2,3120.8,2.86408524]
[1763521343603,0.002,3121.2,3120.9,0.405504]
[1763521343797,0.002,3121.2,3121.0,1.26599257]
[1763521344450,0.002,3121.2,3121.0,3.5670308]
[1763521344609,0.002,3121.2,3121.1,0.405504]
[1763521344803,0.002,3121.3,3121.1,3.61353487]
[1763521345034,0.002,3121.6,3121.3,0.405504]
[1763521345222,0.002,3121.9,3121.8,7.41777044]
[1763521345607,0.002,3121.9,3121.8,7.5461997]
[1763521345808,0.002,3121.9,3121.8,1.4409259]
[1763521347344,0.002,3121.9,3121.8,1.36598572]
[1763521352243,0.4726,3121.9,3121.8,0.96048172]
[1763521352926,0.002,3121.9,3121.8,0.96048172]
[1763521355246,1.1351,3121.9,3121.8,0.12842926]
[1763521355430,1.1351,3121.9,3120.8,0.63322121]
[1763521355629,0.4817,3121.8,3121.1,0.4817]
[1763521356126,0.4817,3121.8,3120.8,0.63456918]
[1763521356316,0.4817,3121.8,3120.6,0.405504]
[1763521357245,0.4817,3121.8,3120.5,0.68544614]
[1763521357412,0.4817,3121.8,3120.6,0.405504]
[1763521358952,0.4817,3121.8,3120.6,1.03401553]
[1763521359145,0.4817,3121.8,3120.7,0.17194617]
[1763521359310,0.4817,3121.8,3120.8,0.405504]
[1763521360027,0.4817,3121.8,3120.9,0.4817]
[1763521363555,0.4817,3121.8,3121.0,0.43754501]
[1763521364361,0.1828,3121.9,3121.0,0.43754501]
[1763521364552,0.677,3121.9,3121.1,0.4817]
[1763521364723,0.677,3121.9,3121.2,0.03203895]
[1763521364923,0.4942,3121.8,3121.2,0.03203895]
[1763521368829,0.4942,3121.8,3121.1,0.66432377]
[1763521369158,0.4942,3121.8,3121.1,0.4817]
[1763521371447,0.4942,3121.8,3121.2,0.03203895]
[1763521371649,0.1828,3121.9,3121.3,0.405504]
[1763521371869,0.002,3121.9,3121.4,0.0320369]
[1763521372077,0.002,3121.9,3121.4,0.5137369]
[1763521372466,0.002,3121.9,3121.4,0.0320369]
[1763521372780,0.002,3121.9,3121.5,0.52823588]
[1763521373784,0.002,3121.9,3121.3,0.405504]
[1763521373970,0.002,3121.9,3121.4,0.4942]
[1763521375376,0.4639,3121.5,3121.4,0.4942]
[1763521375597,0.4639,3121.5,3121.2,2.29938409]
[1763521375598,0.9581,3121.5,3121.2,0.405504]
[1763521375893,0.4639,3121.4,3121.2,0.405504]
[1763521376062,0.4639,3121.4,3121.3,0.4942]
[1763521376256,0.4942,3121.5,3121.3,0.4942]
[1763521376653,0.4639,3121.4,3121.3,0.4942]
[1763521377576,0.9581,3121.4,3121.0,0.405504]
[1763521377888,0.9581,3121.4,3121.1,0.76468881]
[1763521378098,0.95169314,3121.4,3121.1,0.76468881]
[1763521379164,0.4639,3121.2,3121.1,0.76468881]
[1763521379385,0.4639,3121.2,3121.1,0.27048881]
[1763521379588,0.9581,3121.2,3121.0,0.4639]
[1763521379898,0.9581,3121.2,3120.8,0.405504]
[1763521380098,0.4942,3121.1,3120.8,1.363604]
[1763521380313,0.4639,3120.9,3120.8,1.363604]
[1763521380493,0.4639,3120.9,3120.8,1.88597391]
[1763521380696,1.1453,3120.9,3120.8,0.52236991]
[1763521380924,1.1453,3120.9,3120.6,0.4942]
[1763521381094,0.4942,3121.7,3120.8,0.0064]
[1763521381628,0.4942,3121.7,3120.7,0.405504]
[1763521381781,0.4942,3121.7,3121.0,0.001]
[1763521382181,0.4639,3121.1,3121.0,0.001]
[1763521383704,0.9581,3121.1,3121.0,0.001]
[1763521384713,0.1892,3121.9,3121.0,0.0074]
[1763521384919,0.1892,3121.9,3121.1,0.03203998]
[1763521385218,0.6834,3121.9,3121.1,0.26592239]
[1763521385720,0.002,3121.9,3121.2,0.405504]
[1763521385917,0.002,3121.9,3121.3,0.03203793]
[1763521386121,0.002,3121.9,3121.8,0.0064]
[1763521386320,0.002,3121.9,3121.8,0.0128]
[1763521386522,0.002,3121.9,3121.8,1.32529664]